fUST/lending_fUST_20240228
["ID","MTS","AMOUNT","RATE_DAILY","PERIOD"]
[315562991,1709129119197,20981.71868284,0.00020659,120]
[315562994,1709129137200,20981.71868284,0.00020659,120]
[315562996,1709129153197,20981.71868284,0.00020658,120]
[315562997,1709129161635,-592.46406366,0.00016367,2]
[315562998,1709129161659,-179.53546718,0.00016368,2]
[315562999,1709129161683,-374.00046916,0.00016368,2]
[315563000,1709129169262,20981.71868284,0.00020658,120]
[315563002,1709129192310,2324.10177122,0.00020658,120]
[315563003,1709129192335,2913.51661899,0.00020658,120]
[315563004,1709129192363,15744.10029263,0.00020658,120]
[315563006,1709129212284,14255.89970737,0.00020658,120]
[315563007,1709129212461,6725.81897547,0.00020658,120]
[315563008,1709129232405,20981.71868284,0.00020658,120]
[315563009,1709129250339,2778.76888506,0.00020658,120]
[315563026,1709129429725,206.91404315,0.00020681,30]
[315563067,1709129432651,-1033.15800812,0.00016336,2]
[315563069,1709129432663,-155.69178995,0.00016336,2]
[315563071,1709129432675,-719.31845796,0.00016336,2]
[315563074,1709129432686,-155.15360207,0.00016337,2]
[315563076,1709129432698,-155.15360207,0.00016337,2]
[315563078,1709129432709,-557.45474321,0.00016337,2]
[315563080,1709129432720,-155.15360207,0.00016338,2]
[315563083,1709129432731,-703.08553243,0.00016338,2]
[315563086,1709129432743,-2111.64420487,0.00016339,2]
[315563091,1709129432753,-155.15360207,0.00016339,2]
[315563094,1709129432763,-155.15360207,0.0001634,2]
[315563096,1709129432773,-290.02402273,0.0001634,2]
[315563100,1709129432783,-946.75977325,0.0001634,2]
[315563103,1709129432794,-155.15360207,0.0001634,2]
[315563106,1709129432805,-155.15204901,0.00016341,2]
[315563109,1709129432816,-527.76651352,0.00016341,2]
[315563112,1709129432827,-1863.17330942,0.00016341,2]
[315563116,1709129432838,-8007.23444251,0.00016342,2]
[315563119,1709129432849,-4700.60014085,0.00016342,2]
[315563123,1709129432859,-400.75162755,0.00016376,2]
[315563126,1709129432871,-951.9656246,0.00016377,2]
[315563129,1709129432882,-3000.0,0.0001696,2]
[315563132,1709129432894,-179.53546718,0.00017999,2]
[315563135,1709129432906,-5444.5321749,0.00018,2]
[315563138,1709129432916,-592.46406366,0.00018719,2]
[315563140,1709129432927,-155.13186208,0.00018721,2]
[315563142,1709129432936,-164.372374,0.00018722,2]
[315563144,1709129432948,-223.24833805,0.000189,2]
[315563146,1709129432961,-8491.50473407,0.00019176,2]
[315563148,1709129432972,-1213.12810845,0.00019177,2]
[315563150,1709129432983,-502.94782916,0.00019178,2]
[315563152,1709129432995,-500.0,0.00019178,2]
[315563155,1709129433008,-188.36466729,0.00019178,2]
[315563157,1709129433018,-500.62493587,0.00019178,2]
[315563159,1709129433029,-504.44765321,0.00019178,2]
[315563161,1709129433040,-500.0,0.00019178,2]
[315563163,1709129433051,-330.40732907,0.00019178,2]
[315563165,1709129433061,-500.0,0.00019178,2]
[315563167,1709129433073,-500.0,0.00019178,2]
[315563169,1709129433084,-500.0,0.00019178,2]
[315563172,1709129433095,-500.96026853,0.00019178,2]
[315563174,1709129433107,-500.0,0.00019178,2]
[315563176,1709129433118,-500.0,0.00019178,2]
[315563178,1709129433130,-500.0,0.00019178,2]
[315563180,1709129433141,-500.0,0.00019178,2]
[315563183,1709129433155,-182.44518102,0.00019178,2]
[315563185,1709129433167,-500.0,0.00019178,2]
[315563187,1709129433179,-500.469271,0.00019178,2]
[315563189,1709129433190,-500.0,0.00019178,2]
[315563191,1709129433201,-500.0,0.00019178,2]
[315563194,1709129433213,-500.42379287,0.00019178,2]
[315563196,1709129433223,-500.0,0.00019178,2]
[315563198,1709129433233,-500.0,0.00019178,2]
[315563200,1709129433243,-500.0,0.00019178,2]
[315563202,1709129433253,-500.0,0.00019178,2]
[315563204,1709129433263,-500.0,0.00019178,2]
[315563206,1709129433273,-500.0,0.00019178,2]
[315563208,1709129433284,-500.0,0.00019178,2]
[315563210,1709129433295,-462.3131418,0.00019178,2]
[315563212,1709129433307,-502.11011131,0.00019178,2]
[315563214,1709129433317,-397.61567573,0.00019178,2]
[315563216,1709129433328,-634.51,0.00019178,2]
[315563218,1709129433338,-500.0,0.00019178,2]
[315563220,1709129433350,-500.0,0.00019178,2]
[315563222,1709129433360,-500.0,0.00019178,2]
[315563224,1709129433371,-500.0,0.00019178,2]
[315563227,1709129433381,-500.0,0.00019178,2]
[315563229,1709129433390,-500.0,0.00019178,2]
[315563231,1709129433402,-504.92153729,0.00019178,2]
[315563233,1709129433411,-500.0,0.00019178,2]
[315563235,1709129433421,-500.0,0.00019178,2]
[315563237,1709129433431,-500.0,0.00019178,2]
[315563239,1709129433441,-500.0,0.00019178,2]
[315563241,1709129433451,-503.19472331,0.00019178,2]
[315563243,1709129433462,-500.0,0.00019178,2]
[315563245,1709129433472,-495.0863917,0.00019178,2]
[315563247,1709129433482,-500.0,0.00019178,2]
[315563249,1709129433492,-500.0,0.00019178,2]
[315563251,1709129433503,-500.0,0.00019178,2]
[315563253,1709129433512,-500.0,0.00019178,2]
[315563255,1709129433523,-500.0,0.00019178,2]
[315563257,1709129433533,-368.65578206,0.00019178,2]
[315563260,1709129433544,-178.11388434,0.00019178,2]
[315563262,1709129433554,-500.0,0.00019178,2]
[315563264,1709129433565,-500.0,0.00019178,2]
[315563266,1709129433575,-500.0,0.00019178,2]
[315563268,1709129433585,-502.04432248,0.00019178,2]
[315563270,1709129433595,-210.74,0.00019178,2]
[315563272,1709129433606,-773.62,0.00019178,2]
[315563274,1709129433616,-647.85,0.00019178,2]
[315563276,1709129433626,-507.0068055,0.00019178,2]
[315563278,1709129433636,-610.448442,0.00019178,2]
[315563281,1709129433647,-500.0,0.00019178,2]
[315563283,1709129433658,-500.0,0.00019178,2]
[315563285,1709129433669,-500.0,0.00019178,2]
[315563287,1709129433680,-502.04463839,0.00019178,2]
[315563289,1709129433690,-338.91589306,0.00019178,2]
[315563291,1709129433700,-317.02712957,0.00019178,2]
[315563293,1709129433711,-500.0,0.00019178,2]
[315563295,1709129433721,-500.0,0.00019178,2]
[315563297,1709129433731,-500.0,0.00019178,2]
[315563299,1709129433741,-312.75001907,0.00019178,2]
[315563301,1709129433751,-242.96684262,0.00019178,2]
[315563303,1709129433760,-298.44393123,0.00019178,2]
[315563305,1709129433771,-500.0,0.00019178,2]
[315563308,1709129433781,-500.0,0.00019178,2]
[315563310,1709129433791,-500.0,0.00019178,2]
[315563312,1709129433801,-619.65,0.00019178,2]
[315563314,1709129433811,-526.64,0.00019178,2]
[315563316,1709129433821,-500.0,0.00019178,2]
[315563318,1709129433832,-500.0,0.00019178,2]
[315563320,1709129433842,-3933.09,0.00019178,2]
[315563322,1709129433852,-152.70981236,0.00019178,2]
[315563324,1709129433863,-1078.21,0.00019178,2]
[315563326,1709129433873,-744.84,0.00019178,2]
[315563328,1709129433884,-256.30798704,0.00019178,2]
[315563330,1709129433896,-1426.35,0.00019178,2]
[315563332,1709129433907,-500.0,0.00019178,2]
[315563348,1709129434054,-500.0,0.00019178,2]
[315563350,1709129434067,-500.0,0.00019178,2]
[315563352,1709129434076,-336.834071,0.00019178,2]
[315563354,1709129434086,-625.56,0.00019178,2]
[315563356,1709129434096,-500.0,0.00019178,2]
[315563358,1709129434105,-1044.97,0.00019178,2]
[315563360,1709129434115,-500.0,0.00019178,2]
[315563362,1709129434124,-500.0,0.00019178,2]
[315563364,1709129434133,-253.03741308,0.00019178,2]
[315563366,1709129434143,-993.43,0.00019178,2]
[315563368,1709129434153,-500.0,0.00019178,2]
[315563370,1709129434163,-500.0,0.00019178,2]
[315563372,1709129434173,-500.0,0.00019178,2]
[315563374,1709129434182,-500.0,0.00019178,2]
[315563376,1709129434191,-500.0,0.00019178,2]
[315563378,1709129434200,-500.0,0.00019178,2]
[315563380,1709129434210,-500.0,0.00019178,2]
[315563382,1709129434222,-500.0,0.00019178,2]
[315563384,1709129434231,-500.35101391,0.00019178,2]
[315563386,1709129434240,-530.05,0.00019178,2]
[315563388,1709129434249,-7503.71,0.00019178,2]
[315563390,1709129434259,-408.45156298,0.00019178,2]
[315563392,1709129434268,-500.0,0.00019178,2]
[315563394,1709129434276,-500.0,0.00019178,2]
[315563396,1709129434286,-500.0,0.00019178,2]
[315563398,1709129434297,-2964.35,0.00019178,2]
[315563400,1709129434306,-500.0,0.00019178,2]
[315563402,1709129434316,-500.0,0.00019178,2]
[315563404,1709129434327,-500.0,0.00019178,2]
[315563406,1709129434337,-500.0,0.00019178,2]
[315563408,1709129434346,-617.51,0.00019178,2]
[315563410,1709129434356,-681.81,0.00019178,2]
[315563412,1709129434365,-172.36241238,0.00019178,2]
[315563414,1709129434375,-500.0,0.00019178,2]
[315563416,1709129434384,-1143.03,0.00019178,2]
[315563418,1709129434394,-601.95546096,0.00019178,2]
[315563420,1709129434404,-500.0,0.00019178,2]
[315563421,1709129434413,-1074.93,0.00019178,2]
[315563423,1709129434422,-533.07,0.00019178,2]
[315563425,1709129434431,-500.0,0.00019178,2]
[315563427,1709129434441,-1521.03,0.00019178,2]
[315563429,1709129434450,-1143.56,0.00019178,2]
[315563431,1709129434459,-924.9,0.00019178,2]
[315563433,1709129434468,-1170.11,0.00019178,2]
[315563435,1709129434478,-8007.78,0.00019178,2]
[315563437,1709129434487,-500.0,0.00019178,2]
[315563439,1709129434496,-164.519247,0.00019178,2]
[315563441,1709129434506,-165.940353,0.00019178,2]
[315563443,1709129434515,-166.666666,0.00019178,2]
[315563445,1709129434524,-310.07787933,0.00019399,2]
[315563447,1709129434533,-363.517738,0.000194,8]
[315563449,1709129434542,-391.73540002,0.00019452,2]
[315563451,1709129434552,-500.0,0.00019452,2]
[315563453,1709129434561,-500.0,0.00019452,2]
[315563455,1709129434571,-500.0,0.00019452,2]
[315563457,1709129434580,-500.0,0.00019452,2]
[315563459,1709129434589,-500.0,0.00019452,2]
[315563461,1709129434598,-500.0,0.00019452,2]
[315563463,1709129434607,-634.51,0.00019452,2]
[315563465,1709129434616,-504.52087056,0.00019452,2]
[315563467,1709129434625,-500.0,0.00019452,2]
[315563468,1709129434635,-500.0,0.00019452,2]
[315563469,1709129434644,-504.70722091,0.00019452,2]
[315563470,1709129434655,-500.0,0.00019452,2]
[315563471,1709129434664,-500.0,0.00019452,2]
[315563472,1709129434674,-773.62,0.00019452,2]
[315563473,1709129434683,-647.85,0.00019452,2]
[315563474,1709129434692,-500.0,0.00019452,2]
[315563475,1709129434701,-500.0,0.00019452,2]
[315563476,1709129434711,-500.0,0.00019452,2]
[315563477,1709129434720,-500.0,0.00019452,2]
[315563478,1709129434729,-619.65,0.00019452,2]
[315563479,1709129434741,-526.64,0.00019452,2]
[315563480,1709129434750,-500.0,0.00019452,2]
[315563481,1709129434759,-443.88223375,0.00019452,2]
[315563482,1709129434768,-3933.09,0.00019452,2]
[315563483,1709129434778,-1078.21,0.00019452,2]
[315563484,1709129434787,-744.84,0.00019452,2]
[315563485,1709129434796,-1426.35,0.00019452,2]
[315563486,1709129434805,-247.0,0.00019452,2]
[315563487,1709129434815,-625.56,0.00019452,2]
[315563489,1709129434824,-1044.97,0.00019452,2]
[315563491,1709129434834,-993.43,0.00019452,2]
[315563493,1709129434843,-500.0,0.00019452,2]
[315563494,1709129434852,-272.92,0.00019452,2]
[315563496,1709129434861,-530.05,0.00019452,2]
[315563498,1709129434870,-7503.71,0.00019452,2]
[315563501,1709129434880,-2964.35,0.00019452,2]
[315563503,1709129434889,-500.0,0.00019452,2]
[315563505,1709129434898,-500.0,0.00019452,2]
[315563506,1709129434908,-502.34843304,0.00019452,2]
[315563508,1709129434917,-500.0,0.00019452,2]
[315563510,1709129434927,-617.51,0.00019452,2]
[315563512,1709129434936,-138.76993434,0.00019452,2]
[315563515,1709129434954,-543.04006566,0.00019452,2]
[315563517,1709129434963,-73.26947554,0.00019452,2]
[315563912,1709129438691,-155.15360207,0.00016335,2]
[315563914,1709129438701,-15232.41076204,0.00016338,2]
[315563916,1709129438710,-1069.76052446,0.00019452,2]
[315563918,1709129438720,-533.07,0.00019452,2]
[315563920,1709129438729,-1074.93,0.00019452,2]
[315563922,1709129438739,-378.72,0.00019452,2]
[315563924,1709129438748,-1521.03,0.00019452,2]
[315563926,1709129438757,-1143.56,0.00019452,2]
[315563928,1709129438766,-924.9,0.00019452,2]
[315563930,1709129438775,-1170.11,0.00019452,2]
[315563932,1709129438785,-7066.88804448,0.00019452,2]
[315564401,1709129445881,-3605.33,0.00019178,2]
[315564402,1709129445891,-940.89195552,0.00019452,2]
[315564403,1709129445900,-500.0,0.00019452,2]
[315564404,1709129445910,-3605.33,0.00019452,2]
[315564405,1709129445921,-166.666666,0.00019627,2]
[315564406,1709129445932,-16402.46,0.00019716,3]
[315564407,1709129445941,-8232.02435619,0.00019725,2]
[315564408,1709129445952,-500.0,0.00019726,2]
[315564409,1709129445961,-465.52907561,0.00019726,2]
[315564410,1709129445971,-634.51,0.00019726,2]
[315564411,1709129445981,-500.0,0.00019726,2]
[315564413,1709129445990,-500.0,0.00019726,2]
[315564415,1709129446000,-500.0,0.00019726,2]
[315564416,1709129446009,-773.62,0.00019726,2]
[315564417,1709129446018,-647.85,0.00019726,2]
[315564418,1709129446029,-500.0,0.00019726,2]
[315564419,1709129446039,-508.48,0.00019726,2]
[315564421,1709129446048,-500.0,0.00019726,2]
[315564422,1709129446057,-500.0,0.00019726,2]
[315564423,1709129446067,-619.65,0.00019726,2]
[315564424,1709129446076,-526.64,0.00019726,2]
[315564425,1709129446086,-389.43502171,0.00019726,2]
[315564426,1709129446095,-1078.21,0.00019726,2]
[315564427,1709129446105,-744.84,0.00019726,2]
[315564428,1709129446115,-1426.35,0.00019726,2]
[315564429,1709129446125,-625.56,0.00019726,2]
[315564430,1709129446135,-1044.97,0.00019726,2]
[315564431,1709129446144,-993.43,0.00019726,2]
[315564432,1709129446155,-530.05,0.00019726,2]
[315564433,1709129446165,-4331.9837228,0.00019726,2]
[315564447,1709129446713,-3171.7262772,0.00019726,2]
[315564448,1709129446722,-2964.35,0.00019726,2]
[315564449,1709129446732,-617.51,0.00019726,2]
[315564450,1709129446741,-681.81,0.00019726,2]
[315564452,1709129446750,-1143.03,0.00019726,2]
[315564454,1709129446760,-533.07,0.00019726,2]
[315564455,1709129446769,-1074.93,0.00019726,2]
[315564457,1709129446779,-1521.03,0.00019726,2]
[315564459,1709129446787,-1143.56,0.00019726,2]
[315564460,1709129446797,-924.9,0.00019726,2]
[315564461,1709129446805,-1170.11,0.00019726,2]
[315564462,1709129446814,-8007.78,0.00019726,2]
[315564463,1709129446823,-500.0,0.00019726,2]
[315564464,1709129446833,-3605.33,0.00019726,2]
[315564465,1709129446842,-151.14207355,0.00019849,7]
[315564466,1709129446852,-2203.48786713,0.0002,2]
[315564467,1709129446861,-500.0,0.0002,2]
[315564468,1709129446870,-634.51,0.0002,2]
[315564469,1709129446879,-500.0,0.0002,2]
[315564470,1709129446889,-500.0,0.0002,2]
[315564471,1709129446898,-151.6455667,0.0002,2]
[315564472,1709129446907,-246.492,0.0002,2]
[315564473,1709129446918,-773.62,0.0002,2]
[315564474,1709129446928,-647.85,0.0002,2]
[315564475,1709129446937,-500.0,0.0002,2]
[315564476,1709129446946,-334.58423176,0.0002,2]
[315564477,1709129446958,-500.0,0.0002,2]
[315564478,1709129446967,-619.65,0.0002,2]
[315564479,1709129446977,-526.64,0.0002,2]
[315564480,1709129446987,-1078.21,0.0002,2]
[315564481,1709129446996,-744.84,0.0002,2]
[315564482,1709129447005,-1426.35,0.0002,2]
[315564483,1709129447014,-625.56,0.0002,2]
[315564484,1709129447024,-1044.97,0.0002,2]
[315564485,1709129447034,-993.43,0.0002,2]
[315564486,1709129447044,-530.05,0.0002,2]
[315564487,1709129447054,-6100.83778222,0.0002,2]
[315564488,1709129447255,-1402.87221778,0.0002,2]
[315564489,1709129447265,-437.01780586,0.0002,2]
[315564490,1709129570552,38371.4078882,0.00022682,30]
[315564491,1709129767262,-175.17,0.00028493,120]
[315564519,1709130541766,237.778946,0.0001538,2]
[315564620,1709130562459,9244.2739172,0.00015625,2]
[315564633,1709130617462,636.46693389,0.0001538,2]
[315564685,1709130633813,-538.27532223,0.00016361,2]
[315564687,1709130633825,-557.45474321,0.00016362,2]
[315564689,1709130633834,-527.76651352,0.00016362,2]
[315564691,1709130633844,-4700.60014085,0.00016362,2]
[315564692,1709130633854,-2111.64420487,0.00016362,2]
[315564694,1709130633864,-155.10702385,0.00016362,2]
[315564695,1709130633880,-400.75162755,0.00016362,2]
[315564696,1709130633890,-8007.23444251,0.00016362,2]
[315564697,1709130633900,-719.31845796,0.00016363,2]
[315564699,1709130633910,-155.69178995,0.00016364,2]
[315564701,1709130633920,-5661.00315605,0.00016364,2]
[315564703,1709130633930,-1863.17330942,0.00016364,2]
[315564705,1709130633942,-155.10702385,0.00016365,2]
[315564707,1709130633952,-592.46406366,0.00016365,2]
[315564708,1709130633962,-290.02402273,0.00016365,2]
[315564709,1709130633971,-312.33143877,0.00016366,2]
[315564710,1709130633983,-703.08553243,0.00016366,2]
[315564711,1709130633993,-179.53546718,0.00016366,2]
[315564712,1709130634002,-155.10702385,0.00016367,2]
[315564713,1709130634012,-1667.31079121,0.00016367,2]
[315564749,1709130635464,530.38911158,0.00015625,2]
[315564779,1709130637946,-155.10702385,0.00016361,2]
[315564780,1709130637956,-3038.74423981,0.00016367,2]
[315564781,1709130637966,-15232.41076204,0.00016368,2]
[315564782,1709130637975,-2467.27468758,0.00016396,2]
[315564827,1709130640998,-532.72531242,0.00016396,2]
[315564829,1709130641008,-60.09806948,0.00017318,2]
[315564832,1709130641020,-151.28118314,0.00017318,2]
[315564834,1709130641029,-276.79281746,0.00018,2]
[315564836,1709130641040,-1407.53701439,0.00018,2]
[315564847,1709130641134,-3760.20234305,0.00018,2]
[315564849,1709130641143,-500.0,0.00019178,2]
[315564851,1709130641153,-500.0,0.00019178,2]
[315564853,1709130641163,-500.0,0.00019178,2]
[315564855,1709130641172,-500.0,0.00019178,2]
[315564857,1709130641181,-469.51232523,0.00019178,2]
[315564859,1709130641192,-500.0,0.00019178,2]
[315564861,1709130641201,-500.0,0.00019178,2]
[315564863,1709130641211,-500.0,0.00019178,2]
[315564865,1709130641220,-500.0,0.00019178,2]
[315564867,1709130641229,-616.63,0.00019178,2]
[315564869,1709130641238,-501.06592275,0.00019178,2]
[315564871,1709130641248,-500.0,0.00019178,2]
[315564873,1709130641257,-500.0,0.00019178,2]
[315564875,1709130641266,-1076.48,0.00019178,2]
[315564877,1709130641275,-421.73071136,0.00019178,2]
[315564879,1709130641285,-500.0,0.00019178,2]
[315564881,1709130641294,-500.0,0.00019178,2]
[315564883,1709130641304,-500.0,0.00019178,2]
[315564885,1709130641315,-500.0,0.00019178,2]
[315564887,1709130641325,-500.0,0.00019178,2]
[315564889,1709130641335,-500.0,0.00019178,2]
[315564891,1709130641344,-500.0,0.00019178,2]
[315564893,1709130641355,-500.0,0.00019178,2]
[315564895,1709130641364,-258.37608365,0.00019178,2]
[315564897,1709130641374,-500.0,0.00019178,2]
[315564900,1709130641383,-501.1803164,0.00019178,2]
[315564902,1709130641394,-820.09911941,0.00019178,2]
[315564904,1709130641410,-180.05088059,0.00019178,2]
[315564906,1709130641420,-500.0,0.00019178,2]
[315564908,1709130641429,-94.52754117,0.00019178,2]
[315564911,1709130641443,-714.76245883,0.00019178,2]
[315564913,1709130641452,-500.0,0.00019178,2]
[315564914,1709130641462,-452.29044727,0.00019178,2]
[315564916,1709130641472,-214.15395508,0.00019178,2]
[315564919,1709130641485,-285.84604492,0.00019178,2]
[315564921,1709130641494,-501.25651786,0.00019178,2]
[315564923,1709130641503,-500.0,0.00019178,2]
[315564925,1709130641512,-625.17870083,0.00019178,2]
[315564927,1709130641521,-572.99,0.00019178,2]
[315564929,1709130641531,-500.0,0.00019178,2]
[315564931,1709130641540,-500.0,0.00019178,2]
[315564933,1709130641550,-500.0,0.00019178,2]
[315564935,1709130641559,-500.0,0.00019178,2]
[315564937,1709130641568,-500.0,0.00019178,2]
[315564939,1709130641577,-500.0,0.00019178,2]
[315564941,1709130641586,-500.0,0.00019178,2]
[315564943,1709130641595,-3489.96,0.00019178,2]
[315564945,1709130641605,-500.0,0.00019178,2]
[315564947,1709130641614,-500.0,0.00019178,2]
[315564949,1709130641623,-500.0,0.00019178,2]
[315564951,1709130641633,-1314.71,0.00019178,2]
[315564953,1709130641643,-298.5706616,0.00019178,2]
[315564955,1709130641652,-667.67,0.00019178,2]
[315564957,1709130641662,-899.76,0.00019178,2]
[315564959,1709130641670,-682.29,0.00019178,2]
[315564961,1709130641679,-1017.06,0.00019178,2]
[315564963,1709130641689,-500.0,0.00019178,2]
[315564965,1709130641698,-504.61327759,0.00019178,2]
[315564967,1709130641707,-500.0,0.00019178,2]
[315564969,1709130641716,-739.67,0.00019178,2]
[315564971,1709130641725,-500.0,0.00019178,2]
[315564973,1709130641734,-201.70753562,0.00019178,2]
[315564975,1709130641744,-575.15,0.00019178,2]
[315564977,1709130641753,-500.30153018,0.00019178,2]
[315564979,1709130641762,-479.02635274,0.00019178,2]
[315564981,1709130641772,-500.0,0.00019178,2]
[315564983,1709130641782,-500.0,0.00019178,2]
[315564985,1709130641791,-671.73,0.00019178,2]
[315564987,1709130641800,-2845.11,0.00019178,2]
[315564989,1709130641810,-500.0,0.00019178,2]
[315564991,1709130641819,-783.81,0.00019178,2]
[315564993,1709130641829,-500.0,0.00019178,2]
[315564995,1709130641838,-1130.24,0.00019178,2]
[315564997,1709130641847,-7558.75,0.00019178,2]
[315564999,1709130641857,-500.0,0.00019178,2]
[315565001,1709130641866,-7234.76,0.00019178,2]
[315565003,1709130641876,-500.0,0.00019178,2]
[315565005,1709130641886,-1089.18,0.00019178,2]
[315565007,1709130641895,-500.0,0.00019178,2]
[315565009,1709130641905,-1075.1,0.00019178,2]
[315565011,1709130641914,-500.0,0.00019178,2]
[315565013,1709130641923,-1563.05,0.00019178,2]
[315565015,1709130641933,-500.0,0.00019178,2]
[315565017,1709130641943,-500.0,0.00019178,2]
[315565019,1709130641952,-500.0,0.00019178,2]
[315565021,1709130641961,-500.0,0.00019178,2]
[315565023,1709130641970,-500.0,0.00019178,2]
[315565025,1709130641979,-500.0,0.00019178,2]
[315565027,1709130641988,-500.0,0.00019178,2]
[315565029,1709130641997,-500.0,0.00019178,2]
[315565031,1709130642006,-500.0,0.00019178,2]
[315565033,1709130642018,-500.0,0.00019178,2]
[315565035,1709130642027,-500.0,0.00019178,2]
[315565037,1709130642037,-162.850056,0.00019178,2]
[315565039,1709130642046,-166.666666,0.00019178,2]
[315565042,1709130642057,-297.4014107,0.00019245,2]
[315565059,1709130642208,-322.60092564,0.00019245,2]
[315565061,1709130642217,-500.0,0.00019452,2]
[315565062,1709130642226,-616.63,0.00019452,2]
[315565065,1709130642237,-500.0,0.00019452,2]
[315565066,1709130642246,-500.0,0.00019452,2]
[315565069,1709130642256,-1076.48,0.00019452,2]
[315565070,1709130642265,-500.0,0.00019452,2]
[315565072,1709130642274,-166.57721186,0.00019452,2]
[315565165,1709130642990,-367.41003499,0.00019452,2]
[315565167,1709130643000,-500.0,0.00019452,2]
[315565169,1709130643009,-500.0,0.00019452,2]
[315565171,1709130643018,-500.0,0.00019452,2]
[315565173,1709130643027,-212.46898652,0.00019452,2]
[315565175,1709130643036,-1000.15,0.00019452,2]
[315565177,1709130643045,-500.0,0.00019452,2]
[315565179,1709130643054,-809.29,0.00019452,2]
[315565181,1709130643063,-500.0,0.00019452,2]
[315565183,1709130643073,-572.99,0.00019452,2]
[315565185,1709130643082,-500.0,0.00019452,2]
[315565187,1709130643091,-500.0,0.00019452,2]
[315565189,1709130643100,-237.69097845,0.00019452,2]
[315565191,1709130643113,-262.30902155,0.00019452,2]
[315565193,1709130643123,-3489.96,0.00019452,2]
[315565195,1709130643132,-500.0,0.00019452,2]
[315565197,1709130643141,-500.0,0.00019452,2]
[315565199,1709130643150,-1272.73097845,0.00019452,2]
[315565225,1709130643309,-41.97902155,0.00019452,2]
[315565227,1709130643319,-667.67,0.00019452,2]
[315565229,1709130643329,-899.76,0.00019452,2]
[315565231,1709130643338,-682.29,0.00019452,2]
[315565233,1709130643348,-900.53100212,0.00019452,2]
[315565501,1709130645959,-116.52899788,0.00019452,2]
[315565503,1709130645969,-739.67,0.00019452,2]
[315565505,1709130645979,-500.0,0.00019452,2]
[315565507,1709130645988,-575.15,0.00019452,2]
[315565509,1709130645997,-68.61100212,0.00019452,2]
[315566400,1709130655461,530.38911158,0.00015625,2]
[315568066,1709130673545,276.33272713,0.00015625,2]
[315569794,1709130691461,276.33272713,0.00015625,2]
[315570933,1709130705454,276.33272713,0.00015625,2]
[315571103,1709130723540,276.33272713,0.00015625,2]
[315571104,1709130739485,276.33272713,0.00015625,2]
[315571105,1709130755462,276.33272713,0.00015625,2]
[315571106,1709130763012,3000.0,0.00015389,2]
[315571107,1709130775469,276.33272713,0.00015625,2]
[315571109,1709130791479,276.33272713,0.00015389,2]
[315571110,1709130811720,276.33272713,0.00015389,2]
[315571111,1709130829662,276.33272713,0.00015389,2]
[315571113,1709130847482,243.31868742,0.00015389,2]
[315571165,1709131220152,5282.95320769,0.00015389,2]
[315571166,1709131237897,5282.95320769,0.00015389,2]
[315571168,1709131253909,5282.95320769,0.00015389,2]
[315571308,1709131839389,-719.31845796,0.00016882,2]
[315571309,1709131839398,-557.45474321,0.00016883,2]
[315571310,1709131839408,-290.02402273,0.00016883,2]
[315571311,1709131839417,-155.69178995,0.00016884,2]
[315571312,1709131839428,-179.53546718,0.00016885,2]
[315571313,1709131839438,-1796.06341897,0.00016885,2]
[315571314,1709131839451,-2921.43921107,0.00016885,2]